Cogmind - Beta 14 @@@ ROGUE MODE // 2024.09.12 @ 09:08:47 Player: rice Result: Destroyed self via exploding Z-Power Performance ------------- Evolutions (4) 2000 Regions Visited (11) 2200 Robots Destroyed (102) 510 Value Destroyed (3324) 3324 Prototype IDs (29) 580 Alien Tech Used (0) 0 Bonus (1500) 1500 TOTAL SCORE: 10114 Bonus ------- Follower Combat Kills 33 Aligned with FarCom 300 Met Imprinter 300 Destroyed Z-Imprinter 1000 Friendly Fire -133 Cogmind --------- Core Integrity 0/850 Matter 295/300 Energy 98/100 System Corruption 40% Temperature Cool (1) Movement Treading (570) Ox5 Location -6/Deep Caves Parts ------- > --- POWER (1) -------- Zionite Light DM Reactor > --- PROPULSION (5) --- Armored Treads > --- UTILITY (6) ------ Experimental Heat Sink High-capacity Storage Unit Improved Targeting Computer Core Analyzer Advanced Phase Shifter Zionite Weapon Casing > --- WEAPON (3) ------- AWS/Autocannon > --- INVENTORY (20) --- Angular Momentum Engine Makeshift Cloaking Device Hacking Suite Hacking Suite Improved Hacking Suite System Shield Authchip [Propulsion] Hacking Drone Bay Minigun Hypervelocity Gauss Rifle Heavy Machine Gun Makeshift Axe Phasing Sabre Makeshift Spear Makeshift Spear CR-A16's Pointy Stick Peak State ------------ > --- POWER ------------ Reinforced Deuterium Engine > --- PROPULSION ------- Armored Treads Armored Treads Medium Treads Medium Treads Medium Treads > --- UTILITY ---------- High-capacity Storage Unit Advanced Signal Interpreter Improved Targeting Computer Advanced Melee Analysis Suite Core Analyzer Makeshift Light Armor Plating > --- WEAPON ----------- AWS/Autocannon > --- INVENTORY -------- Angular Momentum Engine Makeshift Cloaking Device Improved Weapon Shielding Improved Weapon Shielding Improved Medium Armor Plating Hacking Suite Hacking Suite Improved Hacking Suite System Shield Authchip [Propulsion] Hacking Drone Bay Minigun Hypervelocity Gauss Rifle Heavy Machine Gun Makeshift Spear CR-A16's Pointy Stick [Rating: 79] Favorites ----------- Power Improved Ion Engine Engine Improved Ion Engine Power Core Neutrino Core Reactor Zionite Light DM Reactor Propulsion Light Treads Treads Light Treads Leg Titanium Leg Wheel Compact Wheel Utility Improved Targeting Computer Device Weight Redist. System Storage High-capacity Storage Unit Processor Improved Targeting Computer Protection Light Armor Plating Weapon Axe Energy Gun EM Pulse Gun Ballistic Gun Enhanced Autogun Ballistic Cannon AWS/Autocannon Launcher Missile Launcher Impact Weapon Great Maul Slashing Weapon Axe Piercing Weapon Makeshift Spear Build | -11 -10 -10 -10 -9 -8 -7 -6 -6 -6 -6 -6 ------- Run | Yrd Mat Min Exi Min Mat Fac Fac Low Low Zio Dee Slots Evolved 8 | . . . . . 4 2 2 . . . . Power . | . . . . . . . . . . . . Propulsion 3 | . . . . . 2 . 1 . . . . Utility 4 | . . . . . 2 1 1 . . . . Weapon 1 | . . . . . . 1 . . . . . Parts Attached 133 | 6 4 1 . 8 33 34 10 8 9 14 6 Power 14 | 1 . 1 . 1 2 2 . 2 1 3 1 Engine 10 | 1 . 1 . 1 2 2 . 1 . 2 . Core 3 | . . . . . . . . 1 1 1 . Reactor 1 | . . . . . . . . . . . 1 Propulsion 35 | 2 . . . . 5 14 1 5 2 5 1 Treads 29 | 2 . . . . 5 8 1 5 2 5 1 Leg 4 | . . . . . . 4 . . . . . Wheel 2 | . . . . . . 2 . . . . . Hover . | . . . . . . . . . . . . Flight . | . . . . . . . . . . . . Utility 37 | 1 3 . . 1 11 7 6 . 1 3 4 Device 7 | . . . . . 1 2 1 . . . 3 Storage 6 | 1 1 . . . 4 . . . . . . Processor 9 | . 1 . . . 3 1 4 . . . . Hackware . | . . . . . . . . . . . . Protection 15 | . 1 . . 1 3 4 1 . 1 3 1 Artifact . | . . . . . . . . . . . . Weapon 47 | 2 1 . . 6 15 11 3 1 5 3 . Energy Gun 3 | . 1 . . . . 2 . . . . . Energy Cannon . | . . . . . . . . . . . . Ballistic Gun 16 | 2 . . . 4 7 2 1 . . . . Ballistic Cannon 2 | . . . . . . 1 . . . 1 . Launcher 9 | . . . . 2 1 2 2 1 . 1 . Special Weapon . | . . . . . . . . . . . . Impact Weapon 2 | . . . . . 2 . . . . . . Slashing Weapon 12 | . . . . . 5 4 . . 3 . . Piercing Weapon 3 | . . . . . . . . . 2 1 . Special Melee Weapon . | . . . . . . . . . . . . Unidentified Prototypes 4 | . . . . . 1 . . . . . 3 Corrupted Parts 5 | . . . . . . . . . . 5 . System Corruption 36 | . . . . . . . . . . 36 . Parts Lost 42 | . . . . 1 5 15 . 7 . 9 5 Power 3 | . . . . . 1 1 . . . 1 . Propulsion 18 | . . . . . 1 6 . 4 . 5 2 Utility 13 | . . . . . 3 5 . 1 . 1 3 Weapon 8 | . . . . 1 . 3 . 2 . 2 . Highest Loss Streak 8 | . . . . 1 2 8 . 4 . 5 5 To Critical Strikes 1 | . . . . . . . . 1 . . . Average Slot Usage (%) 91 | . 98 100 100 99 96 81 95 91 93 90 65 Engine 6 | . 14 14 14 14 9 6 6 4 4 . . Core 1 | . . . . . . . . 1 1 5 5 Treads 27 | . 28 28 28 28 34 17 33 30 32 25 14 Device 1 | . . . . . . 5 . . . . 3 Storage 8 | . 14 14 14 14 9 7 6 6 6 6 6 Processor 15 | . 1 . . . 12 14 24 26 26 24 13 Protection 8 | . 10 14 14 14 12 5 5 4 4 7 13 Energy Gun 1 | . 1 14 14 3 . 2 . . . . . Ballistic Gun 7 | . 26 14 14 24 14 3 . . . . . Launcher 1 | . . . . . . . 3 6 2 . . Slashing Weapon 6 | . . . . . 2 7 13 7 9 11 . Peak Build Rating 79 | 6 7 10 13 15 30 44 61 60 69 79 77 Average Rating 39 | 4 6 9 11 13 24 34 53 55 63 64 69 On Entrance 31 | . 6 7 10 13 15 28 44 60 56 64 71 Naked Turns . | . . . . . . . . . . . . Heaviest Build 126 | 13 32 32 32 37 64 107 76 76 70 126 125 Greatest Support 134 | 40 40 40 40 40 80 94 110 134 134 124 76 Greatest Overweight (x) 37 | . . . . . 1 6 . 1 1 21 37 Average Overweight (x) . | . . . . . . 1 . . . . 1 Largest Inventory Capacity 25 | 8 15 15 15 15 25 20 20 20 20 20 20 Average Capacity 18 | 6 8 15 15 15 19 20 20 20 20 20 20 Most Carried 20 | 2 7 9 12 15 20 20 20 20 20 20 16 Average Carried 16 | 1 4 8 10 12 16 18 19 18 18 18 16 Final Capacity 20 | 8 15 15 15 15 20 20 20 20 20 20 20 Final Carried 20 | 2 7 9 12 15 19 20 20 16 18 16 16 Class Distribution -------------------- 53% | Mutant 27% | Gladiator 8% | Scavenger-Mutant 6% | Scavenger-Gunner Dominant Class ---------------- Mutant | -10/Materials Mutant | -10/Mines Mutant | -10/Exiles Mutant | -9/Mines Mutant | -8/Materials Mutant | -7/Factory Gladiator | -6/Factory Mutant | -6/Lower Caves Mutant | -6/Lower Caves Gladiator | -6/Zion Scavenger-Gunner | -6/Deep Caves Resources | -11 -10 -10 -10 -9 -8 -7 -6 -6 -6 -6 -6 ----------- Run | Yrd Mat Min Exi Min Mat Fac Fac Low Low Zio Dee Matter Collected 2836 | 256 68 10 . 144 771 566 178 350 185 193 115 Remotely . | . . . . . . . . . . . . Salvage Created 3052 | . . . . 101 683 681 220 85 460 626 196 Parts 212 | . . . . 7 42 46 19 5 19 56 18 Haulers Intercepted 1 | . . . . . 1 . . . . . . Recyclers Shooed . | . . . . . . . . . . . . Parts Field Recycled . | . . . . . . . . . . . . Retrieved Matter . | . . . . . . . . . . . . Parts Self-Destructed 30 | . . . . . . . . 2 26 2 . Prevented . | . . . . . . . . . . . . Kills | -11 -10 -10 -10 -9 -8 -7 -6 -6 -6 -6 -6 ------- Run | Yrd Mat Min Exi Min Mat Fac Fac Low Low Zio Dee Combat Hostiles Destroyed 84 | . . . . 16 16 15 6 9 8 8 6 Melee 23 | . . . . . 3 6 3 2 8 1 . Guns 14 | . . . . 2 11 1 . . . . . Cannons 12 | . . . . . . 2 . . . 4 6 AOE 34 | . . . . 14 2 6 3 7 . 2 . Classes Destroyed 19 | . . . . 3 6 5 . . 1 3 1 Worker 1 | . . . . . 1 . . . . . . Builder 5 | . . . . . 2 3 . . . . . Hauler 1 | . . . . . 1 . . . . . . Recycler 1 | . . . . . . 1 . . . . . Operator 1 | . . . . . 1 . . . . . . Watcher 4 | . . . . . 2 1 1 . . . . Swarmer 17 | . . . . 3 3 3 3 4 1 . . Grunt 17 | . . . . 1 12 2 . . 2 . . Brawler 4 | . . . . . . 1 . . 3 . . Duelist 3 | . . . . . . 1 . 2 . . . Sentry 8 | . . . . . 1 4 1 1 1 . . Hunter 3 | . . . . . . 1 . 2 . . . Programmer 5 | . . . . . . 3 2 . . . . Zionite 22 | . . . . . . . . . . 22 . Z-Technician 5 | . . . . . . . . . . . 5 Z-Light 2 | . . . . . . . . . . . 2 Tinkerer 1 | . . . . . . . . . . 1 . Thief 1 | . . . . . . . . . 1 . . Assembled 16 | . . . . 13 . . . . . . 3 Thug 1 | . . . . . . . . . . 1 . Butcher 2 | . . . . . . . . . . 2 . Mutant 5 | . . . . . . . . . . 5 . Best Kill Streak 21 | . . . . 13 5 5 3 5 6 21 4 Combat Bots Only 13 | . . . . 13 3 3 3 5 6 3 3 Max Kills in Single Turn 4 | . . . . 4 2 3 3 2 1 2 1 Gunslinging . | . . . . . . . . . . . . Exploded 4 | . . . . 4 2 2 3 2 . 1 . Melee 1 | . . . . . 1 1 1 1 1 1 . Uniques/NPCs Destroyed 1 | . . . . . . . . . . . 1 Z-Imprinter (-6/Deep Caves) Combat | -11 -10 -10 -10 -9 -8 -7 -6 -6 -6 -6 -6 -------- Run | Yrd Mat Min Exi Min Mat Fac Fac Low Low Zio Dee Hostile Shots Fired 844 | . . . . 32 110 322 27 80 44 183 46 Missed 226 | . . . . 12 24 87 8 22 9 49 15 Damage Taken 9671 | . . . . 298 1521 2488 192 1342 570 1936 1324 Core 1497 | . . . . 57 38 467 55 57 75 264 484 Absorbed by Shields . | . . . . . . . . . . . . Redirected to Shielding 217 | . . . . . . . . . . 97 120 Ignored by Resistances 202 | . . . . . . 202 . . . . . Regen/Repaired (Parts) 185 | . . . . . . 185 . . . . . Core Remaining (%) 75 | 100 . . . 77 93 33 . . . . . Volleys Fired 115 | . 6 . . 13 54 15 1 22 . 4 . Largest 3 | . 2 . . 2 2 3 1 1 . 1 . Hottest 113 | . 40 . . 40 61 113 36 36 . 39 . Shots Fired 273 | . 12 . . 16 100 34 1 22 . 63 25 Gun 136 | . 12 . . 6 95 23 . . . . . Cannon 90 | . . . . . . 6 . . . 59 25 Launcher 47 | . . . . 10 5 5 1 22 . 4 . Special . | . . . . . . . . . . . . Kinetic 217 | . 12 . . 6 95 20 . . . 59 25 Thermal 9 | . . . . . . 9 . . . . . Explosive 43 | . . . . 10 5 5 1 22 . . . Electromagnetic 4 | . . . . . . . . . . 4 . Robot Hit Streak 16 | . 2 . . 6 12 16 2 7 . 14 7 Robot Miss Streak 4 | . 2 . . 1 4 2 . 4 . 2 2 Penetration Max . | . . . . . . . . . . . . Secondary Targets 2 | . . . . . 2 . . . . . . Max Gunslinging Chain 1 | . . . . . 1 . . . . . . Autonomous 90 | . . . . . . 6 . . . 59 25 Shots Hit Robots 265 | . 5 . . 7 82 48 12 15 21 58 17 Core Hits 195 | . 2 . . 30 40 34 8 26 10 36 9 Critical Kills . | . . . . . . . . . . . . Critical Parts Destroyed . | . . . . . . . . . . . . Critical Strikes 17 | . . . . . . 3 4 . 3 6 1 Blast 8 | . . . . . . 1 . . . 6 1 Sever 8 | . . . . . . 2 4 . 2 . . Impale 1 | . . . . . . . . . 1 . . Melee Attacks 174 | . . . . . 39 69 31 3 26 6 . Impact 6 | . . . . . 6 . . . . . . Slashing 158 | . . . . . 33 69 31 3 20 2 . Piercing 10 | . . . . . . . . . 6 4 . Sneak Attacks 10 | . . . . . 5 3 2 . . . . Combat Hostiles . | . . . . . . . . . . . . Follow-up Attacks 13 | . . . . . . . 3 . 9 1 . Damage Inflicted 14429 | . 47 . . 1063 2294 2287 712 1472 757 4046 1751 Guns 1588 | . 47 . . 48 1111 382 . . . . . Cannons 4900 | . . . . . . 307 . . . 3302 1291 Explosions 4807 | . . . . 1012 539 693 199 1375 . 529 460 Melee 3066 | . . . . . 599 885 513 97 757 215 . Ramming 68 | . . . . 3 45 20 . . . . . Kinetic 6340 | . 47 . . 48 1111 541 . . . 3302 1291 Thermal 608 | . . . . . . 148 . . . . 460 Explosive 3818 | . . . . 1012 539 693 199 1375 . . . Electromagnetic 529 | . . . . . . . . . . 529 . Impact . | . . . . . . . . . . . . Slashing 2804 | . . . . . 599 885 513 97 633 77 . Piercing 262 | . . . . . . . . . 124 138 . Highest Corruption 40 | . . . . . 10 13 . 2 2 40 40 Average Corruption 12 | . . . . . 10 11 . 2 2 24 40 Corruption Purged . | . . . . . . . . . . . . Corruption Blocked . | . . . . . . . . . . . . Effects 242 | . . . . . 95 60 . 13 10 23 41 Message Errors 43 | . . . . . 18 11 . 2 . 5 7 Matter Fused 75 | . . . . . 29 20 . 5 5 4 12 Heat Flow Errors 30 | . . . . . 10 7 . 3 3 3 4 Energy Discharges 27 | . . . . . 13 6 . 1 . 3 4 Parts Rejected 3 | . . . . . . . . . . 2 1 Parts Fused 1 | . . . . . 1 . . . . . . Data Loss (minor) 40 | . . . . . 15 10 . 2 2 3 8 Data Loss (major) 13 | . . . . . 2 5 . . . 3 3 Misfires 3 | . . . . . 3 . . . . . . Alerts 4 | . . . . . 2 . . . . . 2 Weapon Failures 3 | . . . . . 2 1 . . . . . Overload Shots . | . . . . . . . . . . . . Overflow Damage 956 | . . . . 47 67 131 20 38 8 185 460 Projectiles 440 | . . . . . . . . . . 170 270 Explosions 310 | . . . . 47 2 18 . 38 . 15 190 Melee 206 | . . . . . 65 113 20 . 8 . . Knockbacks 19 | . . . . . 1 1 . . . 11 6 Impact 1 | . . . . . 1 . . . . . . Kinetic 17 | . . . . . . 1 . . . 11 5 Secondary 1 | . . . . . . . . . . . 1 Self-Inflicted Damage 719 | . . . . 41 . 149 . 39 . 100 390 Shots 12 | . . . . 2 . 4 . 1 . 4 1 Rammed 9 | . 1 . . 2 5 1 . . . . . Targets Rammed 13 | . 1 . . 2 8 2 . . . . . Kicked . | . . . . . . . . . . . . Crushed 4 | . . . . . 3 1 . . . . . Highest Temperature 294 | . 6 . . 10 294 271 . 229 216 263 258 Average Temperature 84 | . 4 . . 6 90 78 . 80 87 76 118 Received Heat Transfer 2097 | . . . . . 648 471 24 99 126 486 243 Siege Activations . | . . . . . . . . . . . . Robots Corrupted 1 | . . . . . . . . . . 1 . Combat Hostiles 1 | . . . . . . . . . . 1 . Parts Fried 7 | . . . . . . . . . . 7 . Impact Corruptions . | . . . . . . . . . . . . Robots Melted . | . . . . . . . . . . . . Combat Hostiles . | . . . . . . . . . . . . Parts Melted 1 | . . . . . . . . . . 1 . Heat Transferred 296 | . . . . . . 296 . . . . . Parts Sabotaged . | . . . . . . . . . . . . Parts Stolen 3 | . . . . . . . . . 3 . . Parts Stripped . | . . . . . . . . . . . . Power Chain Reactions . | . . . . . . . . . . . . Alert | -11 -10 -10 -10 -9 -8 -7 -6 -6 -6 -6 -6 ------- Run | Yrd Mat Min Exi Min Mat Fac Fac Low Low Zio Dee Peak Influence 272 | . 29 5 . 108 272 159 102 . . . . Initial 111 | . . 5 . . 33 111 29 . . . . Average 46 | . 18 3 . 7 73 51 36 . . . . Maximum Alert Level 1 | . . . . . 1 . . . . . . Low Security (%) 96 | 100 100 100 . 100 90 100 100 . . . . Level 1 3 | . . . . . 9 . . . . . . Level 2 . | . . . . . . . . . . . . Level 3 . | . . . . . . . . . . . . Level 4 . | . . . . . . . . . . . . Level 5 . | . . . . . . . . . . . . High Security . | . . . . . . . . . . . . Max Security . | . . . . . . . . . . . . Squads Dispatched 17 | . 1 . . . 2 9 4 . 1 . . Investigation . | . . . . . . . . . . . . Extermination 7 | . . . . . . 5 2 . . . . Reinforcement 6 | . 1 . . . 2 1 2 . . . . Assault 1 | . . . . . . . . . 1 . . Garrison 3 | . . . . . . 3 . . . . . Intercept . | . . . . . . . . . . . . Searches Triggered . | . . . . . . . . . . . . Construction Impeded 2 | . . . . . . 1 1 . . . . Haulers Reinforced 1 | . . . . . . . 1 . . . . Active Scanning Responses . | . . . . . . . . . . . . Cargo Convoy Interrupts . | . . . . . . . . . . . . Stealth | -11 -10 -10 -10 -9 -8 -7 -6 -6 -6 -6 -6 --------- Run | Yrd Mat Min Exi Min Mat Fac Fac Low Low Zio Dee Distress Signals 2 | . 1 . . . 1 . . . . . . Communications Jammed . | . . . . . . . . . . . . Distress Signals . | . . . . . . . . . . . . Times Spotted 146 | . 7 . . 19 33 20 8 11 11 31 6 Peak Tracking Total 15 | . 1 . . 15 5 5 5 7 11 9 3 Tactical Retreats 11 | . . . . . 4 . 1 . 3 3 . Traps | -11 -10 -10 -10 -9 -8 -7 -6 -6 -6 -6 -6 ------- Run | Yrd Mat Min Exi Min Mat Fac Fac Low Low Zio Dee Traps Triggered 1 | . . . . . . 1 . . . . . Indirectly . | . . . . . . . . . . . . Trap Hack Attempts . | . . . . . . . . . . . . Triggered . | . . . . . . . . . . . . Disarmed . | . . . . . . . . . . . . Reprogrammed . | . . . . . . . . . . . . Reused . | . . . . . . . . . . . . Traps Extracted . | . . . . . . . . . . . . Installed . | . . . . . . . . . . . . Triggered . | . . . . . . . . . . . . Machines | -11 -10 -10 -10 -9 -8 -7 -6 -6 -6 -6 -6 ---------- Run | Yrd Mat Min Exi Min Mat Fac Fac Low Low Zio Dee Machines Disabled 4 | . . . . . . . . . . 2 2 Max in Single Turn 2 | . . . . . . . . . . 2 1 Machines Repaired . | . . . . . . . . . . . . Machines Dismantled . | . . . . . . . . . . . . Machines Sabotaged . | . . . . . . . . . . . . Overloaded Fab Kills . | . . . . . . . . . . . . Hacking | -11 -10 -10 -10 -9 -8 -7 -6 -6 -6 -6 -6 --------- Run | Yrd Mat Min Exi Min Mat Fac Fac Low Low Zio Dee Machines Accessed 31 | . 4 1 2 . 7 7 9 . 1 . . Terminals 17 | . 3 . . . 5 3 6 . . . . Fabricators . | . . . . . . . . . . . . Repair Stations 1 | . . . . . . 1 . . . . . Recycling Units 7 | . 1 . . . 2 2 2 . . . . Scanalyzers . | . . . . . . . . . . . . Garrison Access 2 | . . . . . . 1 1 . . . . Total Hacks 66 | . 12 1 2 . 18 18 14 . 1 . . Successful 29 | . 4 1 2 . 12 8 1 . 1 . . Failed 37 | . 8 . . . 6 10 13 . . . . Catastrophic 14 | . 2 . . . 2 4 6 . . . . Database Lockouts . | . . . . . . . . . . . . Manual 43 | . 10 . 1 . 10 4 7 . . 11 . Terminals 37 | . 10 . . . 14 4 9 . . . . Fabricators . | . . . . . . . . . . . . Repair Stations 6 | . . . . . . 6 . . . . . Recycling Units 14 | . 2 . . . 4 6 2 . . . . Scanalyzers . | . . . . . . . . . . . . Garrison Access 5 | . . . . . . 2 3 . . . . Terminal Hacks 9 | . . 1 2 . 5 . . . 1 . . Record 1 | . . . 1 . . . . . . . . Prototype ID Bank 1 | . . . . . 1 . . . . . . Open Door 2 | . . 1 . . . . . . 1 . . Alert Level 2 | . . . . . 2 . . . . . . Recall Reinforcements 1 | . . . . . 1 . . . . . . Registered Prototypes 1 | . . . . . 1 . . . . . . Derelict Proto ID Bank 1 | . . . 1 . . . . . . . . Fabricator Hacks . | . . . . . . . . . . . . Repair Station Hacks 6 | . . . . . . 6 . . . . . Scan Component 3 | . . . . . . 3 . . . . . Repair 3 | . . . . . . 3 . . . . . Recycling Unit Hacks 7 | . 1 . . . 3 2 1 . . . . Retrieve Matter 3 | . . . . . 2 1 . . . . . Retrieve Components 4 | . 1 . . . 1 1 1 . . . . Scanalyzer . | . . . . . . . . . . . . Garrison Access Hacks . | . . . . . . . . . . . . Unauthorized Hacks 7 | . 3 . . . 4 . . . . . . Terminals 7 | . 3 . . . 4 . . . . . . Botnet 7 | . 3 . . . 4 . . . . . . Fabricators . | . . . . . . . . . . . . Repair Stations . | . . . . . . . . . . . . Recycling Units . | . . . . . . . . . . . . Scanalyzers . | . . . . . . . . . . . . Garrison Access . | . . . . . . . . . . . . Data Cores Recovered . | . . . . . . . . . . . . Used . | . . . . . . . . . . . . Hacking Detections 23 | . 3 . . . 5 7 8 . . . . Full Trace Events . | . . . . . . . . . . . . Feedback Events . | . . . . . . . . . . . . Feedback Blocked . | . . . . . . . . . . . . Robot Schematics Acquired 3 | . . . . . . . . . . 3 . Robots Built . | . . . . . . . . . . . . Authchips . | . . . . . . . . . . . . Time . | . . . . . . . . . . . . Total Robot Build Rating . | . . . . . . . . . . . . Part Schematics Acquired 15 | . . . . . . . . . . 15 . Parts Built . | . . . . . . . . . . . . Authchips . | . . . . . . . . . . . . Time . | . . . . . . . . . . . . Total Part Build Rating . | . . . . . . . . . . . . Parts Repaired 3 | . . . . . . 3 . . . . . Time 136 | . . . . . . 136 . . . . . Parts Recycled . | . . . . . . . . . . . . Recycled Matter . | . . . . . . . . . . . . Retrieved Matter . | . . . . . . . . . . . . Retrieved Components 9 | . 1 . . . 5 1 2 . . . . Parts Scanalyzed . | . . . . . . . . . . . . Part Schematics Acquired . | . . . . . . . . . . . . Parts Damaged . | . . . . . . . . . . . . Bothacking | -11 -10 -10 -10 -9 -8 -7 -6 -6 -6 -6 -6 ------------ Run | Yrd Mat Min Exi Min Mat Fac Fac Low Low Zio Dee Used RIF Installer . | . . . . . . . . . . . . Robots Hacked . | . . . . . . . . . . . . Non-combat . | . . . . . . . . . . . . Combat . | . . . . . . . . . . . . Robot Hacks Applied . | . . . . . . . . . . . . Relay Couplers Released . | . . . . . . . . . . . . Fabnet Peak Effective % . | . . . . . . . . . . . . Robots Rewired . | . . . . . . . . . . . . Allies Hacked . | . . . . . . . . . . . . Hacks Repelled . | . . . . . . . . . . . . Allies | -11 -10 -10 -10 -9 -8 -7 -6 -6 -6 -6 -6 -------- Run | Yrd Mat Min Exi Min Mat Fac Fac Low Low Zio Dee Total Allies 5 | . . 3 . 2 . . . . . . . Largest Group 3 | . . 3 3 3 1 . . . . . . Highest-Rated Group 43 | . . 40 40 43 31 . . . . . . Highest-Rated Ally 31 | . . 16 16 31 31 . . . . . . Total Orders . | . . . . . . . . . . . . Ally Attacks 24 | . . . . 12 12 . . . . . . Total Damage 177 | . . . . 31 146 . . . . . . Kills 1 | . . . . . 1 . . . . . . Allies Corrupted . | . . . . . . . . . . . . Allies Melted . | . . . . . . . . . . . . Intel | -11 -10 -10 -10 -9 -8 -7 -6 -6 -6 -6 -6 ------- Run | Yrd Mat Min Exi Min Mat Fac Fac Low Low Zio Dee Robot Analysis Total . | . . . . . . . . . . . . Derelict Logs Recovered 5 | . . 1 . 2 . . . 1 1 . . Drone Launches . | . . . . . . . . . . . . Drone Recoveries . | . . . . . . . . . . . . Exploration | -11 -10 -10 -10 -9 -8 -7 -6 -6 -6 -6 -6 ------------- Run | Yrd Mat Min Exi Min Mat Fac Fac Low Low Zio Dee Turns Passed 15224 | 91 679 569 387 1007 3018 2819 1467 1101 989 2312 785 Spaces Moved 7873 | 52 400 354 242 585 1196 1264 904 677 583 1364 252 Core 6 | 2 . . . . . . . . . 2 2 Treads 7407 | 50 400 354 242 585 1196 804 904 677 583 1362 250 Legs 3 | . . . . . . 3 . . . . . Wheels 457 | . . . . . . 457 . . . . . Hover . | . . . . . . . . . . . . Flight . | . . . . . . . . . . . . Fastest Speed 50 | 50 160 160 160 160 160 130 145 145 152 156 243 Average Speed 163 | 155 160 160 160 160 161 163 145 150 154 165 306 Slowest Speed 1900 | 160 160 160 160 160 240 410 145 225 232 1100 1900 Overloaded Moves . | . . . . . . . . . . . . Propulsion Burnouts . | . . . . . . . . . . . . Robots Hopped . | . . . . . . . . . . . . Cave-ins Triggered 2 | . . . . . 1 . . 1 . . . Exploration Rate (%) 51 | 5 44 76 60 87 52 26 23 58 70 90 27 Regions Visited 11 Branch Regions 7 Pre-discovered Areas 3 | . . . 1 1 . . . . . 1 . Known Exits Taken 3 | . . . . . . . 1 1 1 . . Unknown Exits Taken 8 | 1 1 1 1 1 1 1 . . . 1 . Scrap Searched 9 | . . 1 . 1 . . . 1 5 1 . Spaces Dug 85 | . . . . . 31 41 13 . . . . Terrain Destroyed 319 | . . . . 65 57 67 22 104 . 2 2 Melee 72 | . . . . . 18 41 13 . . . . Projectile 5 | . . . . . . 1 . . . 2 2 AOE 242 | . . . . 65 39 25 9 104 . . . Terrain Rammed . | . . . . . . . . . . . . Walls Destroyed . | . . . . . . . . . . . . Machines Disabled . | . . . . . . . . . . . . Actions | -11 -10 -10 -10 -9 -8 -7 -6 -6 -6 -6 -6 --------- Run | Yrd Mat Min Exi Min Mat Fac Fac Low Low Zio Dee Total 9781 | 59 426 356 242 638 2131 1872 1022 725 640 1402 268 Wait 1391 | . 10 . . 23 771 467 62 16 25 8 9 Move 7862 | 51 399 353 241 584 1195 1263 903 676 582 1363 252 Hop . | . . . . . . . . . . . . Pick Up 70 | 2 5 2 1 5 17 17 12 . 4 5 . Fast Attach 35 | 6 1 . . . 4 9 2 . 3 5 5 Attach 35 | . . . . 1 6 11 3 5 4 5 . Detach 6 | . . . . . 2 2 . . 2 . . Swap 63 | . 3 1 . 7 23 14 5 3 2 4 1 Drop 39 | . 1 . . 3 12 6 11 . 2 3 1 Fire 115 | . 6 . . 13 54 15 1 22 . 4 . Melee 152 | . . . . . 39 66 23 3 16 5 . Ram 1 | . . . . . . 1 . . . . . Kick . | . . . . . . . . . . . . Crush 12 | . 1 . . 2 8 1 . . . . . Escape Stasis . | . . . . . . . . . . . . Rewire . | . . . . . . . . . . . . Trap . | . . . . . . . . . . . . Miscellaneous . | . . . . . . . . . . . . Route ------- -11/Scrapyard -10/Materials -10/Mines (discovered 3 exits: [*Mat x2] / *Exi) -10/Exiles -9/Mines -8/Materials -7/Factory -6/Factory -6/Lower Caves -6/Lower Caves (discovered 2 exits: *Fac / *Zio) -6/Zion (discovered 2 exits: [*Dee] / *Pro) -6/Deep Caves History --------- Turn | Location | Event 37 | -11/Scrapyard | Discovered new exit (range 15) 92 | -11/Scrapyard | Entered Materials 301 | -10/Materials | Build established: Mutant 475 | -10/Materials | Discovered new exit (range 14) 771 | -10/Materials | Entered Mines 779 | -10/Mines | Discovered new exit (range 5) 829 | -10/Mines | Met a Derelict bent on vengeance 832 | -10/Mines | Met a Derelict who couldn't figure out how to use a Trap Extractor 953 | -10/Mines | Discovered new exit (range 16) 1034 | -10/Mines | Learned Materials terminal intel 1305 | -10/Mines | Assisted by bots powering up and referring to "LRC-V3" 1333 | -10/Mines | Deemed a non-threat by the Exiles lab entrance 1333 | -10/Mines | Discovered new exit (range 5) 1340 | -10/Mines | Entered Exiles 1340 | -10/Exiles | Accompanied by 3 allies 1380 | -10/Exiles | Met 8R-AWN 1412 | -10/Exiles | Met EX-HEX 1459 | -10/Exiles | Met EX-BIN 1478 | -10/Exiles | Aligned with FarCom system 1480 | -10/Exiles | Given EX-Vault access code 1520 | -10/Exiles | Opened EX-Vault 1560 | -10/Exiles | Found AWS/Autocannon 1594 | -10/Exiles | Warned to stay clear of 0b10 Research branches 1647 | -10/Exiles | Met EX-DEC 1658 | -10/Exiles | Learned location of Zion (-6) 1703 | -10/Exiles | Discovered new exit (range 15) 1727 | -10/Exiles | Left Exiles lab with AWS/Autocannon 1727 | -10/Exiles | Entered Mines 1727 | -9/Mines | Accompanied by 3 allies 1740 | -9/Mines | Learned Materials emergency access door positions 1930 | -9/Mines | Assembled infested the area 1935 | -9/Mines | Assisted by a Guerilla fighting off Assembled 1989 | -9/Mines | Lost 4 allies 2000 | -9/Mines | Destroyed 13 combat bots 2377 | -9/Mines | Joined a pair of Derelicts in attacking an 0b10 outpost 2707 | -9/Mines | Discovered new exit (range 9) 2734 | -9/Mines | Entered Materials 2734 | -8/Materials | Accompanied by 1 ally 2734 | -8/Materials | Evolved 4 slots: Propulsion x2, Utility x2 2736 | -8/Materials | Loaded intel: 11 terminal locations 2739 | -8/Materials | Led the pair of lost Derelicts to an unsafe place 3050 | -8/Materials | Crushed by falling debris 3050 | -8/Materials | System corruption reached 10% 3199 | -8/Materials | Build established: Scavenger-Mutant 4432 | -8/Materials | Build established: Mutant 5728 | -8/Materials | Discovered new exit (range 13) 5752 | -8/Materials | Entered Factory 5752 | -7/Factory | Evolved 2 slots: Utility x1, Weapon x1 6478 | -7/Factory | Lost 4 parts (3n1u) 6801 | -7/Factory | Garrison activated, responded to threat 6900 | -7/Factory | Lost 8 parts (1p2n2u3w) 7169 | -7/Factory | Core integrity fell below 50% 7169 | -7/Factory | System corruption reached 10% 7520 | -7/Factory | Repaired Hpw. Shotgun 7559 | -7/Factory | Repaired Hacking Suite 7620 | -7/Factory | Repaired Enh. Autogun 8537 | -7/Factory | Build established: Gladiator 8562 | -7/Factory | Discovered new exit (range 5) 8571 | -7/Factory | Entered another Factory area 8571 | -6/Factory | Evolved 2 slots: Propulsion x1, Utility x1 10016 | -6/Factory | Discovered new exit (range 15) 10037 | -6/Factory | Identified exit to Lower Caves 10038 | -6/Factory | Entered Lower Caves 10081 | -6/Lower Caves | Learned location of 1 exit from Proximity Caves 10313 | -6/Lower Caves | Crushed by falling debris 10344 | -6/Lower Caves | Lost 3 parts (1n2w) 10588 | -6/Lower Caves | Build established: Mutant 10853 | -6/Lower Caves | Attracted the attention of an 0b10 outpost 10945 | -6/Lower Caves | Lost 4 parts (3n1u) 11126 | -6/Lower Caves | Discovered new exit (range 6) 11134 | -6/Lower Caves | Identified exit to Lower Caves 11139 | -6/Lower Caves | Entered another Lower Caves area 11177 | -6/Lower Caves | Encountered a Warlord checkpoint 11178 | -6/Lower Caves | Discovered new exit (range 2) 11180 | -6/Lower Caves | Identified exit to Factory 11283 | -6/Lower Caves | Found Prototype Device 11416 | -6/Lower Caves | Learned location of 1 exit from Proximity Caves 11502 | -6/Lower Caves | Spotted B-75 Beast 11804 | -6/Lower Caves | Attracted the attention of an 0b10 outpost 11916 | -6/Lower Caves | Build established: Derelict-Gladiator 12114 | -6/Lower Caves | Discovered new exit (range 10) 12126 | -6/Lower Caves | Identified exit to Zion 12128 | -6/Lower Caves | Entered Zion 12218 | -6/Zion | Build established: Gladiator 12235 | -6/Zion | Discovered new exit (range 13) 12242 | -6/Zion | Given the Hacking Drone Bay 12246 | -6/Zion | Found Prototype Device 12264 | -6/Zion | Identified exit to Proximity Caves 12345 | -6/Zion | System corruption cleaned by Quarantine Array 12442 | -6/Zion | Learned location of Quarantine (-3) 12634 | -6/Zion | Acquired unknown access codes intercepted by a Zionite 13101 | -6/Zion | Found CR-A16's Pointy Stick 13937 | -6/Zion | Rebuked by Imprinter 13973 | -6/Zion | Attempted to imprint without authorization 13973 | -6/Zion | Attacked by Zionites 14044 | -6/Zion | System corruption reached 10% 14050 | -6/Zion | Lost 5 parts (4n1w) 14059 | -6/Zion | System corruption reached 30% 14184 | -6/Zion | Lost 3 parts (1p1u1w) 14204 | -6/Zion | Core integrity fell below 50% 14391 | -6/Zion | Opened final containment barrier to the Deep Caves 14429 | -6/Zion | Build established: Scavenger-Gunner 14435 | -6/Zion | Discovered new exit (range 3) 14435 | -6/Zion | Saw the warning signs outside the Deep Caves entrance 14440 | -6/Zion | Entered Deep Caves 14951 | -6/Deep Caves | Attacked by Z-Imprinter 14968 | -6/Deep Caves | Destroyed Z-Imprinter 14994 | -6/Deep Caves | Lost 5 parts (2n3u) 15102 | -6/Deep Caves | Found Prototype Protection 15102 | -6/Deep Caves | Identified Zio. Weapon Casing 15190 | -6/Deep Caves | Z-Facility disabled 15225 | -6/Deep Caves | Destroyed self via exploding Z-Power Last Messages --------------- 15156_ System corrupted: IFF burst signal emitted. 15171_ System corrupted: Component data lost. 15185_ OZ-UZG(o) destroyed. 15186_ System corrupted: Matter fused (-5). 15190_ Z-Facility disabled. 15194_ Destroyed Hover Unit. 15194_ Destroyed Datajack. 15194_ Destroyed Lgt. Ion Engine. 15194_ M9-36B(o) suffers critical hit (Blast). 15194_ Destroyed Mak. Hacking Suite. 15196_ Destroyed Hover Unit. 15196_ M9-36B(o) destroyed. 15207_ System corrupted: Energy discharge (-36). 15214_ KM-QVJ(o) destroyed. 15222_ System corrupted: Component data lost. 15225_ Z-Power explodes. 15225_ Destroyed Lgt. Ion Engine. 15225_ Destroyed Hover Unit. 15225_ NE-F4Z(o) destroyed. Map ----- +----------------------------------------------------+ | | | | | | | | | ?????????????????????#?##????????????????????????? | | ????????????##########"#"##??????????????????????? | | ????????????# ##?????????????????????? | | ?????????# ####?###??????????????? | | ????????? "#"### ##?????######??? | | ????????? "" # ##??### ##?? | | ?????????? "#### #?? | | ?????????? #?? | | ??????????? % #?? | | ??????????? ! ! #??? | | ??????????? *%= #??? | | ????????????"" """""" !%[ % ##?? | | ?????????????"""""""""" =! ### | | ??????????????""?"""""" | | ??????????????????""""" | | ??????????????????"" | | ??????????????????""""" # | | ??????????????????""""" ### | | ????????????????"""""" "#?? | | ????????????????"""""" ##?? | | ???????????????"""%"/ #??? | | ???????????????""""%=% @ #?? | | ???????????"" #?? | | ???????????"" #?? | | ????????????" ##?? | | ????????????" #??? | | ????????????" ??? | | ????????????" ??? | | ????????????" #??? | | ????????????? #???? | | ????????????? ?????????? | | ?????????????? ??????????? | | ?????????????? ???????????? | | ???????????????? ?????????????? | | ?????????????????? ???????????????? | | ????????????????????? ??????????????????? | | ??????????????????????? ????????????????????? | | ?????????????????????????????????????????????????? | | ?????????????????????????????????????????????????? | | ?????????????????????????????????????????????????? | | ?????????????????????????????????????????????????? | | ?????????????????????????????????????????????????? | | ?????????????????????????????????????????????????? | | ?????????????????????????????????????????????????? | | ?????????????????????????????????????????????????? | | ?????????????????????????????????????????????????? | +----------------------------------------------------+ Best States ------------- Heat Dissipation 89 Energy Generation 27 Energy Capacity 315 Matter Stores 300 Matter Capacity 300 Sight Range 16 Terrain Scan Density 10 Additional Mass Support 6 Armor Coverage 450 Resistance: KI 30 Resistance: TH 10 Weapon Shielding 100 Phase Shifting 15 Evasion (%) 55 Targeting Accuracy 12 Melee Accuracy 8 Core Analysis 6 Recoil Reduction 5 Salvage Targeting 1 Authchip Count 1 Item Schematics ----------------- Angular Momentum Engine | -6/Zion | Archive Adv. Cooling System | -6/Zion | Archive Imp. Proton Missile Launcher | -6/Zion | Archive Adv. System Shield | -6/Zion | Archive Thermal Shield | -6/Zion | Archive Phase Gun | -6/Zion | Archive Adv. Hacking Suite | -6/Zion | Archive Imp. Trap Scanner | -6/Zion | Archive Wave Gun | -6/Zion | Archive Power Amplifier | -6/Zion | Archive Railgun | -6/Zion | Archive Adv. Sensor Array | -6/Zion | Archive Point Defense System | -6/Zion | Archive Imp. Medium Treads | -6/Zion | Archive Lance | -6/Zion | Archive Robot Schematics ------------------ R-10 Processor | -6/Zion | Archive E-15 Imp | -6/Zion | Archive K-01 Serf | -6/Zion | Archive Fabricated ------------ Nothing Alien Tech Used ----------------- None Achievements -------------- Are We The Baddies? Monster Challenges ------------ None Game ------ Seed MassChromaticBox Manual? 0 Play Time 01:37:03 Cumulative 31.7 hours Start 2024.09.11 @ 20:39:09 End 2024.09.12 @ 09:08:47 Sessions 3 Manual Loads 0 Difficulty Rogue Special Mode None Game No. 59 Rogue 59 Adventurer 0 Explorer 0 Win Type - Total 0 Types 0/0/0/0/0/0/0/0/0 Lore% 13 Gallery% 30 Achievement% 28 Wizard Run 0 Options --------- Layout 1 ASCII 0 Keyboard 1 Movement Numpad Keybinds 0 Fullscreen 1 Font 24/Smallcaps Map View 50x35 Zoom Use 0% Tactical HUD 1 Map Filters NONE Filters NONE Steam 1 RUN: 67e1da35-0716-437a-b27b-4924a2fb3604